bitfinex/quotes_ETHUSD_20260302
["timestamp","ask_amount","ask_price","bid_price","bid_amount"]
[1772482572512,0.47721251,2037.3,2036.1,1.837]
[1772482572697,0.47721251,2037.3,2036.1,5.67964673]
[1772482572903,4.90869821,2037.4,2036.4,3.39147996]
[1772482573215,4.90869821,2037.4,2036.0,1.22783753]
[1772482573216,0.47721251,2037.3,2036.0,1.22783753]
[1772482573517,0.47721251,2037.3,2036.0,3.06483753]
[1772482573719,0.47721251,2037.1,2035.6,1.22813912]
[1772482573885,0.47721251,2037.1,2035.8,3.84264673]
[1772482574091,5.38591072,2037.4,2035.9,0.45116677]
[1772482574289,0.47721251,2037.3,2035.9,0.45116677]
[1772482574487,1.22717455,2037.2,2036.2,0.45116677]
[1772482574731,1.22717455,2037.2,2036.2,2.29216677]
[1772482575231,0.11397559,2037.5,2036.6,0.45116677]
[1772482575427,0.11397559,2037.5,2036.7,0.45116677]
[1772482575612,1.29,2037.6,2037.0,0.60065176]
[1772482575813,1.23,2037.9,2037.3,0.60065176]
[1772482576015,2.39651448,2038.3,2037.4,0.45116677]
[1772482576220,2.39651448,2038.3,2037.0,3.37529771]
[1772482576221,2.39651448,2038.3,2037.3,1.842]
[1772482576417,2.39651448,2038.3,2037.4,1.22705408]
[1772482576731,2.39651448,2038.3,2037.0,3.37529771]
[1772482576732,2.88205758,2038.3,2037.0,2.29366007]
[1772482576901,2.88205758,2038.3,2036.9,4.90918016]
[1772482576902,0.4855431,2038.2,2036.9,0.14948499]
[1772482577102,2.39651448,2038.3,2036.8,3.52103003]
[1772482577103,2.39651448,2038.3,2037.2,0.45266007]
[1772482577414,2.39651448,2038.3,2037.1,0.14948499]
[1772482577415,2.39651448,2038.3,2037.3,0.45266007]
[1772482577620,0.61321106,2038.6,2037.9,0.14948499]
[1772482578141,1.83955937,2038.6,2037.8,0.46090966]
[1772482578299,1.83955937,2038.6,2037.5,0.61039465]
[1772482578491,1.83955937,2038.6,2037.6,1.22693364]
[1772482578691,0.4529816,2038.4,2037.0,1.68816371]
[1772482579523,0.4529816,2038.4,2037.0,1.68820381]
[1772482579827,1.83955937,2038.6,2037.4,0.46090966]
[1772482579828,0.61321106,2038.6,2037.4,0.46090966]
[1772482580046,0.61321106,2038.6,2037.9,0.46090966]
[1772482580502,1.83954567,2038.6,2037.9,0.46090966]
[1772482580824,0.61321106,2038.6,2037.9,1.22672649]
[1772482581023,0.61321106,2038.6,2037.9,1.68763615]
[1772482581347,0.61321106,2038.6,2037.5,1.22694682]
[1772482581348,1.83954812,2038.6,2037.5,1.22694682]
[1772482581649,0.4529816,2038.5,2037.1,3.07623479]
[1772482582349,0.4529816,2038.5,2037.2,0.46090966]
[1772482582522,0.4529816,2038.5,2037.3,1.22711431]
[1772482582523,1.22645211,2038.4,2037.3,1.22711431]
[1772482582726,1.22645211,2038.4,2037.3,1.68802397]
[1772482582923,1.22645211,2038.4,2036.9,0.46090966]
[1772482583131,0.4529816,2038.3,2037.0,1.22729504]
[1772482583331,0.4529816,2038.3,2036.8,3.07638504]
[1772482583527,1.22645211,2038.4,2036.9,0.46090966]
[1772482583837,1.22845211,2038.4,2036.9,0.46090966]
[1772482584053,1.22845211,2038.4,2037.5,0.001]
[1772482584456,0.002,2038.4,2037.5,0.001]
[1772482584640,0.002,2038.4,2037.5,0.46190966]
[1772482584964,0.002,2038.4,2037.5,2.31190966]
[1772482585457,0.002,2038.4,2037.5,0.001]
[1772482586573,0.4549816,2038.4,2037.5,0.001]
[1772482586859,0.4549816,2038.4,2037.2,0.001]
[1772482587566,0.4549816,2038.4,2036.5,4.91038256]
[1772482587567,0.4529816,2037.9,2035.9,1.68886781]
[1772482587737,0.4529816,2037.7,2035.9,1.68886781]
[1772482587933,0.4529816,2037.7,2036.0,0.46090966]
[1772482588146,0.4529816,2037.6,2036.4,0.46090966]
[1772482588358,0.4549816,2038.4,2036.7,0.46090966]
[1772482588528,1.67949388,2038.3,2036.8,1.68832521]
[1772482588941,1.67949388,2038.3,2036.9,0.46090966]
[1772482589343,1.67949388,2038.3,2037.0,0.46090966]
[1772482589963,0.4529816,2038.2,2037.0,0.46090966]
[1772482590147,0.4529816,2038.2,2036.7,1.22742732]
[1772482590344,0.4529816,2038.2,2036.6,1.68840151]
[1772482590663,0.4529816,2038.2,2036.3,4.91074652]
[1772482590664,0.4529816,2037.8,2036.3,4.91074652]
[1772482590869,0.4529816,2037.8,2036.3,1.22771693]
[1772482591049,0.4529816,2037.6,2036.2,1.68864226]
[1772482592046,0.4529816,2037.6,2035.9,1.22789783]
[1772482592439,2.41209549,2037.6,2035.9,1.22789783]
[1772482592640,0.4529816,2037.3,2035.9,1.22789783]
[1772482593839,0.4529816,2037.3,2035.9,1.68880749]
[1772482594640,1.22717455,2037.2,2036.4,2.41147519]
[1772482595165,0.4529816,2037.7,2037.0,2.41147519]
[1772482595166,1.22693364,2037.6,2037.0,2.41147519]
[1772482595571,1.22693364,2037.6,2036.7,2.41147519]
[1772482596078,0.4529816,2037.5,2036.3,2.41147519]
[1772482596250,0.4529816,2037.4,2036.1,1.68869796]
[1772482596447,0.4529816,2037.4,2036.0,1.22786059]
[1772482596649,0.4529816,2037.4,2035.7,5.43874518]
[1772482596650,1.68015615,2037.2,2035.8,1.68892812]
[1772482596853,0.4529816,2037.1,2035.8,0.46090966]
[1772482597287,0.4529816,2037.1,2036.1,0.001]
[1772482597486,0.4529816,2037.1,2035.6,1.22809734]
[1772482597487,0.4549816,2037.1,2035.6,1.22809734]
[1772482597658,0.4549816,2037.1,2035.9,0.001]
[1772482598573,0.4529816,2036.9,2035.4,1.22823237]
[1772482598744,0.4529816,2036.3,2035.6,0.001]
[1772482598947,2.044,2036.2,2035.6,0.001]
[1772482599479,2.9994007,2035.8,2034.7,0.001]
[1772482599781,2.9994007,2035.8,2034.7,1.22964077]
[1772482600374,2.5464191,2035.8,2034.7,1.22964077]
[1772482600548,2.5464191,2035.8,2034.7,1.69055043]
[1772482600745,1.22807879,2035.7,2034.7,1.69055043]
[1772482600962,1.22807879,2035.7,2034.7,0.001]
[1772482601650,1.22807879,2035.7,2034.8,0.46090966]
[1772482602586,1.22789783,2036.0,2034.8,0.46090966]
[1772482602790,4.91158069,2036.1,2035.0,0.46090966]
[1772482603181,4.91158069,2036.1,2034.7,1.22965751]
[1772482603182,2.5464191,2035.9,2034.7,1.22965751]
[1772482603685,2.5464191,2035.9,2034.7,0.001]
[1772482603901,2.5464191,2035.9,2034.7,1.22966618]
[1772482604070,2.5464191,2035.9,2034.7,1.69057584]
[1772482604473,4.91158069,2036.1,2034.8,0.46090966]
[1772482604794,0.4529816,2036.0,2034.7,1.22967758]
[1772482605099,0.4529816,2036.0,2034.7,1.69058724]
[1772482605694,1.22783753,2036.2,2034.8,0.46090966]
[1772482606396,1.22783753,2036.2,2035.0,0.46090966]
[1772482607069,1.22759636,2036.5,2035.2,0.46090966]
[1772482607696,1.22759636,2036.5,2035.3,0.47372507]
[1772482607993,6.95410892,2036.6,2035.6,0.47372507]
[1772482607994,1.22757897,2036.6,2035.6,0.47372507]
[1772482608169,5.39134547,2037.2,2035.6,0.47372507]
[1772482608170,4.9091899,2037.0,2035.6,0.47372507]
[1772482608769,4.9091899,2037.0,2035.8,0.47372507]
[1772482609202,1.22929504,2037.1,2036.0,0.47372507]
[1772482610685,1.22929504,2037.1,2036.2,0.47372507]
[1772482611198,0.002,2037.1,2036.3,1.22771693]
[1772482611370,0.002,2037.1,2036.2,1.70145436]
[1772482611898,0.002,2037.1,2036.3,0.47372507]
[1772482612623,0.002,2037.3,2036.5,0.47372507]
[1772482613298,0.002,2037.3,2036.5,1.70131965]
[1772482614013,0.002,2037.3,2036.6,0.47372507]
[1772482614607,0.002,2037.3,2036.7,0.47372507]
[1772482615108,0.002,2037.3,2036.8,1.22741555]
[1772482615710,0.002,2037.3,2036.8,0.47372507]
[1772482616014,0.002,2037.3,2036.7,1.22743057]
[1772482616820,0.002,2037.3,2036.8,0.47372507]
[1772482617115,0.002,2037.3,2036.7,1.70115564]
[1772482617973,0.002,2037.3,2036.7,0.47372507]
[1772482618179,0.002,2037.3,2036.5,1.22759636]
[1772482618504,0.002,2037.3,2036.3,1.70141535]
[1772482619122,0.002,2037.3,2036.3,1.70142733]
[1772482619524,0.002,2037.3,2036.4,0.47372507]
[1772482620435,1.22893364,2037.6,2036.8,0.47372507]
[1772482620436,0.002,2037.6,2036.8,0.47372507]
[1772482620661,0.48451877,2037.6,2036.4,0.47372507]
[1772482620806,0.48251877,2037.4,2036.0,1.7016229]
[1772482621140,0.48251877,2037.4,2036.1,0.47372507]
[1772482621453,1.70963308,2037.3,2035.8,0.47372507]
[1772482621627,0.48251877,2037.2,2035.8,0.47372507]
[1772482623009,0.48251877,2036.9,2035.6,1.22809096]
[1772482623216,1.22741555,2036.8,2035.6,1.22809096]
[1772482623416,1.22741555,2036.8,2035.7,0.47372507]
[1772482624033,1.22741555,2036.8,2035.9,0.47372507]
[1772482624204,1.22738524,2036.9,2035.9,0.47372507]
[1772482624527,1.22738524,2036.9,2035.8,2.41198727]
[1772482624528,1.22738524,2036.9,2036.1,0.47372507]
[1772482625335,0.48451877,2037.0,2035.7,3.53080386]
[1772482625548,0.48451877,2037.0,2035.7,0.47372507]
[1772482626251,0.002,2037.0,2035.9,0.47372507]
[1772482626407,0.002,2037.0,2036.4,0.47372507]
[1772482626607,1.22900353,2037.5,2036.9,0.47372507]
[1772482627234,0.002,2037.5,2036.9,0.47372507]
[1772482627536,0.002,2037.5,2036.9,1.22734994]
[1772482627735,0.002,2037.5,2037.0,0.47372507]
[1772482628138,1.13069283,2038.0,2037.0,0.47372507]
[1772482629134,1.13069283,2038.0,2037.3,0.47372507]
[1772482629305,1.22651228,2038.3,2037.3,1.70077998]
[1772482630530,1.22651228,2038.3,2037.4,0.47372507]
[1772482630743,1.22651228,2038.3,2037.3,1.22705491]
[1772482631043,1.22651228,2038.3,2037.1,0.47372507]
[1772482631044,0.48251877,2038.2,2037.1,0.47372507]
[1772482631230,1.22663264,2038.1,2037.1,0.47372507]
[1772482631634,4.11899701,2038.1,2037.0,3.52800996]
[1772482632139,1.22663264,2038.1,2037.1,0.47372507]
[1772482632513,2.4098456,2037.8,2036.8,0.47372507]
[1772482632925,2.4098456,2037.8,2036.8,1.70113983]
[1772482633121,3.20530587,2037.9,2036.8,1.70113983]
[1772482633330,1.22681322,2037.8,2036.8,1.70113983]
[1772482633531,1.22681322,2037.8,2036.9,0.47372507]
[1772482635314,4.90725291,2037.9,2036.9,0.47372507]
[1772482635315,4.90725291,2037.9,2037.0,1.70102011]
[1772482635649,4.90725291,2037.9,2037.1,0.47372507]
[1772482636316,0.002,2037.6,2037.1,0.47372507]
[1772482636517,4.90725291,2037.9,2037.1,0.47372507]
[1772482636518,4.90725291,2037.9,2037.2,0.48595592]
[1772482636728,1.22675303,2038.0,2037.2,0.48595592]
[1772482636729,4.90688629,2038.0,2037.2,0.48595592]
[1772482636913,0.002,2037.8,2037.2,0.48595592]
[1772482637548,0.002,2038.1,2037.7,0.45184117]
[1772482637841,6.22849975,2038.4,2038.1,0.45184117]
[1772482637842,4.507,2038.4,2038.1,0.45184117]
[1772482638045,4.49800001,2038.4,2038.1,0.45184117]
[1772482638739,3.56452881,2038.4,2038.1,0.45184117]
[1772482638940,2.71251865,2038.4,2038.1,0.45184117]
[1772482639248,1e-08,2038.4,2038.1,0.45184117]
[1772482639444,1e-08,2038.4,2038.2,1.67841363]
[1772482639743,1e-08,2038.4,2037.8,0.45184117]
[1772482640340,1e-08,2038.4,2037.4,2.27084117]
[1772482640647,1e-08,2038.4,2037.5,0.45184117]
[1772482641519,1e-08,2038.4,2037.7,0.45184117]
[1772482641718,1e-08,2038.4,2037.4,0.45184117]
[1772482642540,1e-08,2038.4,2037.1,4.90889337]
[1772482642541,2.49215362,2038.4,2037.1,1.67907596]
[1772482642749,0.47815361,2038.3,2037.1,0.45184117]
[1772482643518,1.22657246,2038.2,2037.1,0.45184117]
[1772482643919,0.47815361,2038.1,2036.7,0.45184117]
[1772482645046,1.22657246,2038.2,2036.7,0.45184117]
[1772482645247,1.22657246,2038.2,2037.1,0.45184117]
[1772482645415,1e-08,2038.4,2037.2,1.22717455]
[1772482645615,1e-08,2038.4,2037.3,0.45184117]
[1772482645819,1e-08,2038.4,2037.4,0.45184117]
[1772482647326,1e-08,2038.4,2037.5,1.816]
[1772482647636,1e-08,2038.4,2037.8,0.45184117]
[1772482649347,1e-08,2038.4,2037.4,0.45184117]
[1772482649546,1e-08,2038.4,2037.2,6.72445727]
[1772482649547,1e-08,2038.4,2037.2,1.22713673]
[1772482649755,1e-08,2038.4,2037.3,0.001]
[1772482649926,0.002,2038.2,2037.3,0.001]
[1772482650554,0.002,2038.2,2037.3,0.45284117]
[1772482651553,0.002,2038.2,2037.4,0.45184117]
[1772482651729,0.002,2038.2,2037.5,1.22699386]
[1772482652125,0.002,2038.2,2037.5,1.67883503]
[1772482652345,0.002,2038.2,2037.6,0.45184117]
[1772482652672,0.002,2038.2,2037.3,3.04108078]
[1772482652858,0.002,2038.2,2037.3,1.22808078]
[1772482653248,0.002,2038.2,2037.3,1.67992195]
[1772482653445,0.002,2038.2,2037.3,0.45284117]
[1772482653646,2.48415361,2038.1,2037.3,0.001]
[1772482653846,1.22669283,2038.0,2037.3,0.001]
[1772482654247,1.22669283,2038.0,2037.0,0.001]
[1772482654657,1.22669283,2038.0,2037.0,0.45284117]
[1772482655934,0.002,2038.2,2037.2,0.45184117]
[1772482656235,0.002,2038.2,2037.3,0.45184117]
[1772482658159,0.002,2038.2,2037.5,0.45184117]
[1772482660134,0.002,2038.2,2037.7,0.45184117]
[1772482661759,0.002,2038.2,2037.5,1.22694747]
[1772482661954,0.002,2038.2,2037.4,3.0340278]
[1772482662340,0.002,2038.2,2037.4,1.807]
[1772482662546,0.002,2038.2,2037.4,3.48588897]
[1772482663377,0.002,2038.2,2037.6,0.45184117]
[1772482664385,0.002,2038.2,2037.7,1.6787146]
[1772482664688,0.002,2038.2,2037.8,0.45184117]
[1772482664839,0.00200001,2038.4,2037.8,0.45184117]
[1772482665039,0.00200001,2038.4,2037.9,1.805]
[1772482665290,0.00200001,2038.4,2038.0,0.45184117]
[1772482665845,0.61321106,2038.6,2038.0,0.45184117]
[1772482666250,1.2261962,2038.9,2038.1,0.45184117]
[1772482666673,1.22603109,2039.1,2038.3,0.45184117]
[1772482666872,0.47815361,2039.0,2037.8,0.45184117]
[1772482667166,0.47815361,2039.0,2037.9,3.03075303]
[1772482667369,0.45489881,2039.0,2037.9,3.02975303]
[1772482667552,0.45489881,2039.0,2037.9,3.52290328]
[1772482669071,1.22615135,2038.9,2038.0,1.803]
[1772482669873,1.68105016,2038.9,2038.0,1.803]
[1772482670275,3.82770766,2038.7,2037.6,1.72005401]
[1772482670476,0.45489881,2038.6,2037.5,0.001]
[1772482670778,0.45489881,2038.6,2037.5,1.22799113]
[1772482671069,1.22639195,2038.5,2037.5,1.22799113]
[1772482671768,1.22639195,2038.5,2037.5,0.001]
[1772482671769,0.45489881,2038.4,2037.5,0.001]
[1772482672173,1.22639195,2038.5,2037.5,0.001]
[1772482672348,1.22639195,2038.5,2037.5,0.49415025]
[1772482672956,4.90556781,2038.6,2037.6,1.22693364]
[1772482672957,5.36046662,2038.6,2037.6,1.22693364]
[1772482673368,5.36046662,2038.6,2037.5,3.52109538]
[1772482675967,4.90556781,2038.6,2037.6,0.49315025]
[1772482676556,1.22633179,2038.6,2037.7,0.49315025]
[1772482676946,3.21306055,2039.1,2038.3,0.49315025]
[1772482677145,1.22591085,2039.3,2038.4,1.22645211]
[1772482677573,1.22591085,2039.3,2038.3,3.5166144]
[1772482678158,0.002,2038.8,2038.3,3.5166144]
[1772482678374,0.002,2038.8,2037.8,0.14948499]
[1772482678375,0.002,2038.8,2037.7,1.72098429]
[1772482678573,0.002,2038.8,2037.8,0.49315025]
[1772482679379,0.002,2038.8,2038.0,0.49315025]
[1772482680380,0.002,2039.0,2038.4,3.8659591]
[1772482680561,0.002,2039.0,2038.5,1.795]
[1772482680757,0.002,2039.0,2038.4,0.49315025]
[1772482680964,0.002,2039.0,2038.2,1.795]
[1772482681264,0.002,2039.0,2038.2,2.28815025]
[1772482681470,0.002,2039.0,2037.9,1.71986499]
[1772482681797,0.002,2039.0,2038.1,0.49315025]
[1772482682075,0.45489881,2038.9,2037.8,0.49315025]
[1772482682246,0.45489881,2038.9,2037.8,1.71996009]
[1772482682445,0.45489881,2038.9,2037.8,1.71993607]
[1772482682712,13.10606443,2039.5,2037.8,1.71993607]
[1772482682713,1.33420917,2040.0,2039.0,0.49315025]
[1772482682852,14.61886359,2040.8,2039.0,0.49315025]
[1772482682853,1.22512986,2040.6,2039.5,0.49315025]
[1772482683178,4.28853464,2040.9,2039.8,0.49315025]
[1772482683479,1.981,2041.0,2039.9,0.49315025]
[1772482683668,1.22480446,2041.2,2039.9,0.49315025]
[1772482683976,1.98,2041.1,2039.9,0.49315025]
[1772482684177,1.67970327,2041.2,2039.9,3.8659591]
[1772482684472,1.98,2041.1,2039.9,0.49315025]
[1772482684678,1.67970327,2041.2,2039.9,0.49315025]
[1772482684679,5.05251212,2041.2,2039.9,0.49315025]
[1772482684847,1.67970327,2041.2,2039.9,0.49315025]
[1772482685051,1.979,2041.1,2039.9,0.49315025]
[1772482685250,1.38763306,2041.6,2040.7,0.49315025]
[1772482685479,1.38763306,2041.6,2040.0,8.75163869]
[1772482685480,1.38763306,2041.6,2040.4,1.22524995]
[1772482685684,1.84253187,2041.6,2040.4,1.22524995]
[1772482685885,3.37280885,2041.5,2040.3,1.71843263]
[1772482686187,1.84253187,2041.6,2040.3,1.71843263]
[1772482686379,1.978,2041.4,2040.3,0.49315025]
[1772482686586,2.43289881,2041.4,2040.3,1.22529791]
[1772482686967,1.38763306,2041.6,2040.4,0.49315025]
[1772482686968,1.38765152,2041.6,2040.4,0.49315025]
[1772482687179,1.38765152,2041.6,2040.3,1.22529791]
[1772482687180,1.976,2041.4,2040.3,1.22529791]
[1772482687571,1.976,2041.4,2040.2,4.90124001]
[1772482687572,0.45489881,2041.2,2040.0,1.22545708]
[1772482687758,0.45489881,2041.2,2039.7,1.22567044]
[1772482688197,0.45489881,2041.2,2039.8,0.49315025]
[1772482688401,1.975,2041.1,2039.8,0.49315025]
[1772482688771,0.45489881,2041.2,2039.9,0.49315025]
[1772482688772,1.974,2041.2,2039.9,0.49315025]
[1772482689615,1.22470974,2041.3,2040.1,0.49315025]
[1772482689616,1.973,2041.1,2040.1,0.49315025]
[1772482689797,3.19770974,2041.3,2040.1,0.49315025]
[1772482690363,1.67960855,2041.3,2040.1,0.49315025]
[1772482690580,0.45489881,2041.1,2039.9,1.22550956]
[1772482691084,0.45489881,2041.1,2039.8,4.08067196]
[1772482691472,1.971,2041.0,2039.8,4.08067196]
[1772482691782,0.45489881,2040.8,2039.8,2.85510203]
[1772482692188,0.45489881,2040.8,2039.4,1.22580585]
[1772482692499,0.45489881,2040.6,2039.4,1.22580585]
[1772482693004,0.45489881,2040.6,2039.3,0.001]
[1772482693172,0.45489881,2040.6,2039.3,1.22690912]
[1772482693512,0.45489881,2040.5,2039.3,0.001]
[1772482693670,0.45489881,2040.3,2039.3,0.001]
[1772482694427,1.966,2040.2,2039.3,0.001]
[1772482694836,0.45489881,2040.1,2039.2,2.28408163]
[1772482695320,0.45489881,2040.1,2039.0,0.001]
[1772482695697,1.680389,2040.0,2039.0,0.001]
[1772482696030,1.964,2039.9,2039.0,0.49415025]
[1772482696334,1.964,2039.9,2039.0,0.001]
[1772482696499,0.47177412,2039.8,2039.0,0.001]
[1772482696702,1.964,2039.7,2039.0,0.001]
[1772482696909,1.964,2039.6,2039.0,0.001]
[1772482697106,1.964,2039.7,2039.0,0.47860558]
[1772482697305,1.964,2039.7,2039.0,0.001]
[1772482697730,4.90196078,2040.1,2039.0,0.45759744]
[1772482698031,6.86496078,2040.1,2039.0,0.45759744]
[1772482699026,1.963,2040.0,2039.0,0.45759744]
[1772482700095,1.22555027,2039.9,2039.0,0.45759744]
[1772482700425,1.22555027,2039.9,2039.0,1.22707192]
[1772482700600,1.22555027,2039.9,2039.0,0.001]
[1772482700929,4.90220108,2040.1,2039.0,1.22707862]
[1772482700930,1.962,2040.1,2039.0,1.22707862]
[1772482702231,1.22549019,2040.0,2039.0,0.001]
[1772482704030,1.96,2039.9,2039.0,0.001]
[1772482704202,1.22573053,2039.6,2039.0,0.001]
[1772482704801,1.96,2039.5,2039.0,0.001]
[1772482705536,1.96,2039.4,2039.0,0.001]
[1772482706738,3.18585436,2039.4,2039.0,0.001]
[1772482706907,1.96,2039.4,2039.0,0.001]
[1772482707103,3.83068048,2040.1,2039.0,0.45759744]
[1772482707104,1.96,2039.7,2039.0,0.45759744]
[1772482707314,2.42298517,2039.7,2039.2,0.001]
[1772482708015,1.959,2039.6,2039.2,0.001]
[1772482708603,3.18478172,2039.6,2039.2,0.001]
[1772482709034,1.959,2039.5,2039.2,0.001]
[1772482710015,1.959,2039.5,2039.0,0.001]
[1772482710212,1.959,2039.5,2038.4,0.45659744]
[1772482710422,3.36769531,2039.4,2038.4,1.68304177]
[1772482710621,3.36769531,2039.4,2038.2,4.9061674]
[1772482710622,1.22591085,2039.3,2038.3,1.22647598]
[1772482710821,0.46298517,2039.2,2038.1,1.68318982]
[1772482711021,0.46298517,2039.2,2038.1,0.45659744]
[1772482711240,3.36769531,2039.1,2038.1,0.45659744]
[1772482711537,3.36769531,2038.8,2037.8,0.33582361]
[1772482711734,3.83068048,2038.8,2037.8,0.33582361]
[1772482711915,0.46298517,2038.7,2037.7,0.001]
[1772482712110,1.96,2038.6,2037.7,1.22786173]
[1772482712724,1.22639195,2038.5,2037.7,0.001]
[1772482713740,1.959,2038.4,2037.7,0.001]
[1772482714628,1.22615135,2038.9,2038.1,1.68318624]
[1772482714939,4.90443064,2039.1,2038.4,0.45659744]
[1772482714940,1.959,2039.1,2038.4,0.45659744]
[1772482715245,1.958,2039.2,2038.5,2.86498345]
[1772482715440,1.22579063,2039.6,2038.6,2.86498345]
[1772482715638,1.958,2039.4,2038.6,2.86498345]
[1772482715935,1.22579063,2039.6,2038.6,2.86498345]
[1772482716136,1.958,2039.5,2038.6,0.45659744]
[1772482716339,1.958,2039.4,2038.6,0.45659744]
[1772482716519,1.22579063,2039.6,2038.7,0.45659744]
[1772482716725,1.957,2039.6,2039.0,1.68268866]
[1772482717546,1.957,2039.6,2038.9,3.634488]
[1772482718046,1.957,2039.6,2038.9,1.22610199]
[1772482718245,1.957,2039.6,2038.7,1.68286908]
[1772482718816,1.22579063,2039.5,2038.7,1.68286908]
[1772482719030,0.002,2039.9,2038.8,0.45659744]
[1772482719231,0.002,2039.9,2038.8,2.86498345]
[1772482719232,3.18161035,2039.8,2038.8,2.86498345]
[1772482719747,1.956,2039.7,2038.8,2.86498345]
[1772482721025,1.22573053,2039.6,2038.9,1.22615135]
[1772482721234,1.22573053,2039.6,2038.8,1.68277464]
[1772482722442,0.002,2039.5,2038.8,1.68277464]
[1772482722855,0.002,2039.7,2039.4,2.86498345]
[1772482723049,0.002,2039.7,2039.6,1.22573053]
[1772482723654,0.002,2040.0,2039.7,0.45659744]
[1772482724450,0.002,2040.1,2039.8,0.45659744]
[1772482724628,1.2251558,2040.6,2039.8,0.45659744]
[1772482724831,7.77056255,2041.2,2040.1,0.45659744]
[1772482724832,0.002,2040.5,2040.1,0.45659744]
[1772482725032,4.89860256,2041.4,2040.5,1.68178734]
[1772482725232,1.952,2041.3,2040.5,1.68178734]
[1772482725443,1.22458976,2041.5,2040.7,0.45659744]
[1772482726123,1.951,2041.4,2040.7,0.45659744]
[1772482726925,1.951,2041.4,2040.4,4.90075961]
[1772482726926,4.35938601,2041.4,2040.3,1.68189353]
[1772482727141,1.22470974,2041.3,2040.3,1.68189741]
[1772482727429,1.951,2041.2,2040.3,0.45659744]
[1772482727781,1.951,2041.2,2040.3,1.68190062]
[1772482727950,1.951,2041.2,2040.3,0.45659744]
[1772482728241,1.72349005,2041.3,2039.9,1.69040391]
[1772482728567,4.35838601,2041.1,2040.0,0.46485364]
[1772482729126,1.22488975,2041.0,2040.0,1.69030347]
[1772482729328,1.22488975,2041.0,2040.0,1.69033581]
[1772482729954,1.22488975,2041.0,2040.0,1.69034334]
[1772482730525,1.22488975,2041.0,2040.1,0.46485364]
[1772482730526,3.17388975,2041.0,2040.1,0.46485364]
[1772482730929,1.22488975,2041.0,2040.1,0.46485364]
[1772482731128,3.17288975,2041.0,2040.2,1.6902237]
[1772482732855,1.22488975,2041.0,2040.2,1.6902237]
[1772482733237,1.947,2041.0,2040.2,1.6902237]
[1772482734429,1.22458976,2041.5,2040.6,2.87323965]
[1772482734751,0.002,2040.8,2040.6,0.46485364]
[1772482735348,0.002,2040.8,2040.6,1.68995016]
[1772482736439,0.002,2040.8,2040.6,0.46485364]
[1772482736763,0.002,2041.0,2040.7,2.40838601]
[1772482736941,0.1631026,2041.6,2041.3,2.40838601]
[1772482737265,1.22411007,2042.3,2041.3,2.87323965]
[1772482737432,1.944,2042.1,2041.4,1.22464975]
[1772482738032,1.86237573,2043.1,2042.1,0.46485364]
[1772482738258,1.86237573,2043.1,2041.4,1.76]
[1772482738259,1.943,2043.0,2041.7,2.87323965]
[1772482738457,2.44178031,2043.0,2041.7,2.87323965]
[1772482738660,2.44178031,2043.0,2041.7,0.46485364]
[1772482738871,0.49878031,2043.0,2041.8,2.40838601]
[1772482739164,1.942,2042.9,2041.8,2.87323965]
[1772482739360,1.22381045,2042.8,2041.9,1.68920351]
[1772482739664,1.942,2042.7,2042.0,0.46485364]
[1772482739834,1.942,2042.7,2041.6,0.46485364]
[1772482740031,1.22381045,2042.8,2041.7,2.40838601]
[1772482740360,1.22381045,2042.8,2042.0,0.46485364]
[1772482740559,4.89452745,2043.1,2042.2,2.40838601]
[1772482740560,1.22363075,2043.1,2042.2,2.40838601]
[1772482740860,1.22363075,2043.1,2041.5,1.37407475]
[1772482740861,2.44078031,2043.0,2041.7,0.46485364]
[1772482741065,0.49878031,2042.9,2041.7,0.46485364]
[1772482741261,2.44078031,2042.9,2041.7,0.46485364]
[1772482741562,3.16481045,2042.8,2041.8,3.63279584]
[1772482741762,3.16481045,2042.8,2041.8,2.40838601]
[1772482741944,3.16481045,2042.8,2041.7,1.68927786]
[1772482742359,3.16481045,2042.8,2041.3,0.065536]
[1772482742360,0.49878031,2042.4,2041.1,0.46485364]
[1772482743135,0.49878031,2042.4,2041.3,0.46485364]
[1772482743136,1.94,2042.3,2041.3,0.46485364]
[1772482743353,1.22417001,2042.2,2041.4,1.22464975]
[1772482743538,3.16417001,2042.2,2041.4,1.22464975]
[1772482743738,3.16417001,2042.2,2041.3,1.68954123]
[1772482745163,3.16317001,2042.2,2041.3,1.68954123]
[1772482745463,1.22387036,2042.7,2041.9,1.68915218]
[1772482745966,3.16287036,2042.7,2041.9,1.68915218]
[1772482746459,1.22387036,2042.7,2041.9,1.68915218]
[1772482747241,3.63225637,2042.7,2041.5,1.6893968]
[1772482747546,0.002,2042.2,2041.6,0.46485364]
[1772482749555,1.2237728,2042.9,2042.2,2.87323965]
[1772482749874,1.46784113,2043.9,2041.8,4.81677202]
[1772482749875,2.66894845,2043.7,2042.9,0.46485364]
[1772482750375,2.66894845,2043.7,2042.6,0.46485364]
[1772482751179,1.44566694,2043.7,2043.0,0.46485364]
[1772482751382,2.66894449,2043.7,2043.0,0.46485364]
[1772482751582,2.66894449,2043.7,2043.0,1.68853665]
[1772482751740,1.44566694,2043.7,2043.1,0.46485364]
[1772482751940,2.66894187,2043.7,2043.1,0.46485364]
[1772482752263,2.66894187,2043.7,2042.8,1.22377199]
[1772482752447,1.44566694,2043.7,2042.9,0.46485364]
[1772482752768,2.66894879,2043.7,2042.9,0.46485364]
[1772482753150,1.44566694,2043.7,2043.3,0.46485364]
[1772482753587,1.44566694,2043.7,2043.4,1.22345111]
[1772482753952,1.44566694,2043.7,2043.3,1.6883243]
[1772482754579,2.66895013,2043.7,2042.9,1.68856005]
[1772482755070,2.66895013,2043.7,2042.9,1.22370641]
[1772482755245,2.66895013,2043.7,2042.8,1.22381045]
[1772482755453,2.66895013,2043.7,2042.6,4.89559312]
[1772482755674,1.933,2043.6,2042.6,4.89559312]
[1772482756163,1.933,2043.6,2042.2,1.68383348]
[1772482756361,1.933,2043.6,2041.8,0.45966347]
[1772482756362,2.89045288,2043.0,2041.8,0.45966347]
[1772482756583,0.48206687,2042.6,2041.5,0.47387677]
[1772482756851,2.40838601,2042.4,2041.5,0.47387677]
[1772482757059,1.932,2042.3,2041.5,1e-08]
[1772482757605,1.932,2042.3,2040.6,0.468933]
[1772482757606,1.2244698,2041.7,2040.6,0.468933]
[1772482757890,1.931,2041.6,2040.6,1.69405549]
[1772482758072,1.931,2041.6,2040.6,0.468933]
[1772482758480,2.40838601,2041.5,2040.5,0.001]